fUST/lending_fUST_20250225
["ID","MTS","AMOUNT","RATE_DAILY","PERIOD"]
[354333870,1740426633269,-1799.77,0.00013945,2]
[354333871,1740426633279,-500.0,0.00013945,2]
[354333872,1740426633289,-970.0,0.00013945,2]
[354333873,1740426633299,-500.0,0.00013945,2]
[354333874,1740426633309,-1617.98,0.00013945,2]
[354333875,1740426633319,-500.0,0.00013945,2]
[354333876,1740426633328,-9318.78,0.00013945,2]
[354333877,1740426633338,-798.94,0.00013945,2]
[354333878,1740426633347,-500.0,0.00013945,2]
[354333879,1740426633356,-553.11,0.00013945,2]
[354333880,1740426633365,-500.0,0.00013945,2]
[354333881,1740426633375,-159.66213942,0.00014009,2]
[354333882,1740426633386,-56631.60650752,0.00014027,5]
[354333883,1740426633397,-500.0,0.00014027,2]
[354333884,1740426633407,-500.0,0.00014027,2]
[354333885,1740426633418,-500.0,0.00014027,2]
[354333886,1740426633429,-500.0,0.00014027,2]
[354333887,1740426633439,-500.0,0.00014027,2]
[354333888,1740426633448,-500.0,0.00014027,2]
[354333889,1740426633458,-500.0,0.00014027,2]
[354333890,1740426633468,-500.0,0.00014027,2]
[354333891,1740426633479,-500.0,0.00014027,2]
[354333892,1740426633488,-500.0,0.00014027,2]
[354333893,1740426633499,-500.0,0.00014027,2]
[354333894,1740426633508,-789.85,0.00014027,2]
[354333895,1740426633518,-500.0,0.00014027,2]
[354333896,1740426633528,-792.13,0.00014027,2]
[354333897,1740426633538,-500.0,0.00014027,2]
[354333898,1740426633548,-500.0,0.00014027,2]
[354333899,1740426633558,-500.0,0.00014027,2]
[354333900,1740426633568,-466.8,0.00014027,2]
[354333901,1740426633578,-500.0,0.00014027,2]
[354333902,1740426633589,-737.26,0.00014027,2]
[354333903,1740426633599,-500.0,0.00014027,2]
[354333904,1740426633610,-500.0,0.00014027,2]
[354333905,1740426633620,-151.0,0.00014027,2]
[354333906,1740426633630,-500.0,0.00014027,2]
[354333907,1740426633640,-500.0,0.00014027,2]
[354333908,1740426633650,-1020.52,0.00014027,2]
[354333909,1740426633660,-500.0,0.00014027,2]
[354333910,1740426633670,-500.0,0.00014027,2]
[354333911,1740426633681,-500.0,0.00014027,2]
[354333912,1740426633691,-560.63,0.00014027,2]
[354333913,1740426633701,-51.17449843,0.00014027,2]
[354333914,1740426633714,-448.82550157,0.00014027,2]
[354333915,1740426633725,-351.17448843,0.00014027,2]
[354333916,1740426633742,-148.82551157,0.00014027,2]
[354333917,1740426633752,-242.68682,0.00014027,2]
[354333918,1740426633762,-839.91,0.00014027,2]
[354333919,1740426633772,-242.68682,0.00014027,2]
[354333920,1740426633782,-2458.51,0.00014027,2]
[354333921,1740426633792,-500.0,0.00014027,2]
[354333922,1740426633802,-500.0,0.00014027,2]
[354333923,1740426633811,-228.21603602,0.00014027,2]
[354333924,1740426633824,-529.25396398,0.00014027,2]
[354333925,1740426633835,-822.38444297,0.00014027,2]
[354333926,1740426633847,-6415.28555703,0.00014027,2]
[354333927,1740426633858,-500.0,0.00014027,2]
[354333928,1740426633868,-906.71,0.00014027,2]
[354333929,1740426633878,-773.183495,0.00014027,2]
[354333930,1740426633889,-500.0,0.00014027,2]
[354333931,1740426633901,-773.183495,0.00014027,2]
[354333932,1740426633912,-500.0,0.00014027,2]
[354333933,1740426633922,-157.899175,0.00014027,2]
[354333934,1740426633932,-500.0,0.00014027,2]
[354333935,1740426633942,-500.0,0.00014027,2]
[354333936,1740426633952,-500.0,0.00014027,2]
[354333937,1740426633963,-500.0,0.00014027,2]
[354333938,1740426633973,-1637.13,0.00014027,2]
[354333939,1740426633982,-874.186738,0.00014027,2]
[354333940,1740426633992,-874.186738,0.00014027,2]
[354333941,1740426634003,-500.0,0.00014027,2]
[354333942,1740426634013,-500.0,0.00014027,2]
[354333943,1740426634023,-586.07,0.00014027,2]
[354333944,1740426634036,-277.34297,0.00014027,2]
[354333945,1740426634046,-277.34297,0.00014027,2]
[354333946,1740426634056,-500.0,0.00014027,2]
[354333947,1740426634067,-174.056845,0.00014027,2]
[354333948,1740426634077,-174.056845,0.00014027,2]
[354333949,1740426634088,-1669.06,0.00014027,2]
[354333950,1740426634097,-500.0,0.00014027,2]
[354333951,1740426634108,-500.0,0.00014027,2]
[354333952,1740426634118,-1799.77,0.00014027,2]
[354333953,1740426634127,-500.0,0.00014027,2]
[354333954,1740426634136,-970.0,0.00014027,2]
[354333955,1740426634146,-500.0,0.00014027,2]
[354333956,1740426634156,-1617.98,0.00014027,2]
[354333957,1740426634165,-500.0,0.00014027,2]
[354333958,1740426634176,-9318.78,0.00014027,2]
[354333959,1740426634186,-798.94,0.00014027,2]
[354333960,1740426634197,-500.0,0.00014027,2]
[354333961,1740426634208,-553.11,0.00014027,2]
[354333962,1740426634217,-500.0,0.00014027,2]
[354333963,1740426634227,-457.69886115,0.00014101,2]
[354333964,1740426634236,-500.0,0.00014108,2]
[354333965,1740426634245,-500.0,0.00014108,2]
[354333966,1740426634254,-500.0,0.00014109,2]
[354333967,1740426634264,-500.0,0.00014109,2]
[354333968,1740426634273,-500.0,0.00014109,2]
[354333969,1740426634283,-500.0,0.00014109,2]
[354333970,1740426634291,-500.0,0.00014109,2]
[354333971,1740426634301,-500.0,0.00014109,2]
[354333972,1740426634312,-500.0,0.00014109,2]
[354333973,1740426634321,-500.0,0.00014109,2]
[354333974,1740426634331,-500.0,0.00014109,2]
[354333975,1740426634340,-500.0,0.00014109,2]
[354333976,1740426634350,-500.0,0.00014109,2]
[354333977,1740426634360,-789.85,0.00014109,2]
[354333978,1740426634369,-500.0,0.00014109,2]
[354333979,1740426634378,-792.13,0.00014109,2]
[354333980,1740426634388,-162.16132169,0.00014109,2]
[354333981,1740426634397,-500.0,0.00014109,2]
[354333982,1740426634407,-500.0,0.00014109,2]
[354333983,1740426634417,-500.0,0.00014109,2]
[354333984,1740426634427,-737.26,0.00014109,2]
[354333985,1740426634437,-500.0,0.00014109,2]
[354333986,1740426634448,-500.0,0.00014109,2]
[354333987,1740426634458,-500.0,0.00014109,2]
[354333988,1740426634468,-500.0,0.00014109,2]
[354333989,1740426634477,-1020.52,0.00014109,2]
[354333990,1740426634487,-500.0,0.00014109,2]
[354333991,1740426634496,-500.0,0.00014109,2]
[354333992,1740426634506,-500.0,0.00014109,2]
[354333993,1740426634517,-560.63,0.00014109,2]
[354333994,1740426634526,-500.0,0.00014109,2]
[354333995,1740426634536,-839.91,0.00014109,2]
[354333996,1740426634546,-2458.51,0.00014109,2]
[354333997,1740426634557,-500.0,0.00014109,2]
[354333998,1740426634567,-500.0,0.00014109,2]
[354333999,1740426634576,-757.47,0.00014109,2]
[354334000,1740426634587,-7237.67,0.00014109,2]
[354334001,1740426634597,-500.0,0.00014109,2]
[354334002,1740426634607,-906.71,0.00014109,2]
[354334003,1740426634617,-500.0,0.00014109,2]
[354334004,1740426634627,-500.0,0.00014109,2]
[354334005,1740426634637,-500.0,0.00014109,2]
[354334006,1740426634647,-500.0,0.00014109,2]
[354334007,1740426634656,-733.252567,0.00014109,2]
[354334008,1740426634666,-733.252567,0.00014109,2]
[354334009,1740426634681,-500.0,0.00014109,2]
[354334010,1740426634690,-1637.13,0.00014109,2]
[354334011,1740426634700,-500.0,0.00014109,2]
[354334012,1740426634709,-586.07,0.00014109,2]
[354334013,1740426634719,-277.34297,0.00014109,2]
[354334014,1740426634728,-277.34297,0.00014109,2]
[354334015,1740426634737,-500.0,0.00014109,2]
[354334016,1740426634746,-174.056845,0.00014109,2]
[354334017,1740426634755,-174.056845,0.00014109,2]
[354334018,1740426634765,-1669.06,0.00014109,2]
[354334019,1740426634774,-500.0,0.00014109,2]
[354334020,1740426634784,-500.0,0.00014109,2]
[354334021,1740426634794,-1799.77,0.00014109,2]
[354334022,1740426634803,-187.44,0.00014109,2]
[354334023,1740426634813,-970.0,0.00014109,2]
[354334024,1740426634822,-500.0,0.00014109,2]
[354334025,1740426634831,-1617.98,0.00014109,2]
[354334026,1740426634840,-500.0,0.00014109,2]
[354334027,1740426634850,-9318.78,0.00014109,2]
[354334028,1740426634859,-798.94,0.00014109,2]
[354334029,1740426634869,-500.0,0.00014109,2]
[354334030,1740426634878,-553.11,0.00014109,2]
[354334031,1740426634887,-500.0,0.00014109,2]
[354334032,1740426634896,-151.0,0.0001419,2]
[354334033,1740426634906,-242.68682,0.0001419,2]
[354334034,1740426634915,-242.68682,0.0001419,2]
[354334035,1740426634924,-773.183495,0.0001419,2]
[354334036,1740426634933,-773.183495,0.0001419,2]
[354334037,1740426634942,-874.186738,0.0001419,2]
[354334038,1740426634952,-874.186738,0.0001419,2]
[354334039,1740426634961,-277.34297,0.0001419,2]
[354334040,1740426634970,-277.34297,0.0001419,2]
[354334041,1740426634979,-500.0,0.00014191,2]
[354334042,1740426634988,-294.56581264,0.00014191,2]
[354334043,1740426634997,-500.0,0.00014191,2]
[354334044,1740426635006,-500.0,0.00014191,2]
[354334045,1740426635018,-500.0,0.00014191,2]
[354334046,1740426635030,-500.0,0.00014191,2]
[354334047,1740426635039,-500.0,0.00014191,2]
[354334048,1740426635048,-500.0,0.00014191,2]
[354334049,1740426635059,-500.0,0.00014191,2]
[354334050,1740426635068,-500.0,0.00014191,2]
[354334051,1740426635077,-500.0,0.00014191,2]
[354334052,1740426635086,-789.85,0.00014191,2]
[354334053,1740426635095,-500.0,0.00014191,2]
[354334054,1740426635105,-792.13,0.00014191,2]
[354334055,1740426635115,-500.0,0.00014191,2]
[354334056,1740426635124,-500.0,0.00014191,2]
[354334057,1740426635134,-500.0,0.00014191,2]
[354334058,1740426635143,-737.26,0.00014191,2]
[354334059,1740426635153,-500.0,0.00014191,2]
[354334060,1740426635162,-500.0,0.00014191,2]
[354334061,1740426635172,-500.0,0.00014191,2]
[354334062,1740426635182,-500.0,0.00014191,2]
[354334063,1740426635294,-1020.52,0.00014191,2]
[354334064,1740426635305,-500.0,0.00014191,2]
[354334065,1740426635314,-500.0,0.00014191,2]
[354334066,1740426635324,-500.0,0.00014191,2]
[354334067,1740426635333,-560.63,0.00014191,2]
[354334068,1740426635343,-500.0,0.00014191,2]
[354334069,1740426635352,-839.91,0.00014191,2]
[354334070,1740426635362,-2458.51,0.00014191,2]
[354334071,1740426635372,-500.0,0.00014191,2]
[354334072,1740426635381,-500.0,0.00014191,2]
[354334073,1740426635390,-757.47,0.00014191,2]
[354334074,1740426635399,-7237.67,0.00014191,2]
[354334075,1740426635408,-500.0,0.00014191,2]
[354334076,1740426635418,-906.71,0.00014191,2]
[354334077,1740426635427,-500.0,0.00014191,2]
[354334078,1740426635437,-500.0,0.00014191,2]
[354334079,1740426635446,-500.0,0.00014191,2]
[354334080,1740426635455,-500.0,0.00014191,2]
[354334081,1740426635464,-500.0,0.00014191,2]
[354334082,1740426635473,-1637.13,0.00014191,2]
[354334083,1740426635482,-500.0,0.00014191,2]
[354334084,1740426635491,-586.07,0.00014191,2]
[354334085,1740426635501,-187.38,0.00014191,2]
[354334086,1740426635510,-1669.06,0.00014191,2]
[354334087,1740426635519,-500.0,0.00014191,2]
[354334088,1740426635529,-500.0,0.00014191,2]
[354334089,1740426635538,-1799.77,0.00014191,2]
[354334090,1740426635547,-970.0,0.00014191,2]
[354334091,1740426635556,-500.0,0.00014191,2]
[354334092,1740426635566,-1617.98,0.00014191,2]
[354334093,1740426635575,-330.4,0.00014191,2]
[354334094,1740426635584,-9318.78,0.00014191,2]
[354334095,1740426635593,-798.94,0.00014191,2]
[354334096,1740426635602,-500.0,0.00014191,2]
[354334097,1740426635611,-553.11,0.00014191,2]
[354334098,1740426635620,-1000.0,0.00014221,2]
[354334099,1740426635630,-160.0,0.0001425,5]
[354334100,1740426635639,-500.0,0.00014273,2]
[354334101,1740426635648,-610.8,0.00014273,2]
[354334102,1740426635657,-500.0,0.00014273,2]
[354334103,1740426635667,-500.0,0.00014273,2]
[354334104,1740426635676,-500.0,0.00014273,2]
[354334105,1740426635685,-500.0,0.00014273,2]
[354334106,1740426635695,-500.0,0.00014273,2]
[354334107,1740426635704,-500.0,0.00014273,2]
[354334108,1740426635714,-500.0,0.00014273,2]
[354334109,1740426635723,-789.85,0.00014273,2]
[354334110,1740426635731,-500.0,0.00014273,2]
[354334111,1740426635740,-792.13,0.00014273,2]
[354334112,1740426635750,-500.0,0.00014273,2]
[354334113,1740426635759,-500.0,0.00014273,2]
[354334114,1740426635768,-500.0,0.00014273,2]
[354334115,1740426635778,-737.26,0.00014273,2]
[354334116,1740426635787,-500.0,0.00014273,2]
[354334117,1740426635796,-500.0,0.00014273,2]
[354334118,1740426635806,-1020.52,0.00014273,2]
[354334119,1740426635815,-500.0,0.00014273,2]
[354334120,1740426635826,-500.0,0.00014273,2]
[354334121,1740426635836,-500.0,0.00014273,2]
[354334122,1740426635845,-560.63,0.00014273,2]
[354334123,1740426635855,-500.0,0.00014273,2]
[354334124,1740426635864,-839.91,0.00014273,2]
[354334125,1740426635873,-2458.51,0.00014273,2]
[354334126,1740426635882,-500.0,0.00014273,2]
[354334127,1740426635892,-500.0,0.00014273,2]
[354334128,1740426635901,-757.47,0.00014273,2]
[354334129,1740426635910,-7237.67,0.00014273,2]
[354334130,1740426635919,-906.71,0.00014273,2]
[354334131,1740426635928,-500.0,0.00014273,2]
[354334132,1740426635938,-622.86,0.00014273,2]
[354334133,1740426635948,-500.0,0.00014273,2]
[354334134,1740426635959,-500.0,0.00014273,2]
[354334135,1740426635968,-733.252567,0.00014273,2]
[354334136,1740426635979,-733.252567,0.00014273,2]
[354334137,1740426635988,-500.0,0.00014273,2]
[354334138,1740426635998,-1637.13,0.00014273,2]
[354334139,1740426636007,-500.0,0.00014273,2]
[354334140,1740426636017,-586.07,0.00014273,2]
[354334141,1740426636026,-174.056845,0.00014273,2]
[354334142,1740426636038,-174.056845,0.00014273,2]
[354334143,1740426636047,-1669.06,0.00014273,2]
[354334144,1740426636056,-500.0,0.00014273,2]
[354334145,1740426636065,-1799.77,0.00014273,2]
[354334146,1740426636076,-970.0,0.00014273,2]
[354334147,1740426636085,-358.96,0.00014273,2]
[354334148,1740426636095,-1617.98,0.00014273,2]
[354334149,1740426636106,-9318.78,0.00014273,2]
[354334150,1740426636115,-798.94,0.00014273,2]
[354334151,1740426636125,-500.0,0.00014273,2]
[354334152,1740426636135,-553.11,0.00014273,2]
[354334153,1740426636144,-159.66213942,0.00014297,2]
[354334154,1740426636153,-2008.0,0.000143,2]
[354334155,1740426636162,-151.0,0.000143,2]
[354334156,1740426636171,-291.7,0.00014355,2]
[354334157,1740426636180,-500.0,0.00014355,2]
[354334158,1740426636189,-500.0,0.00014356,2]
[354334159,1740426636198,-500.0,0.00014356,2]
[354334160,1740426636207,-500.0,0.00014356,2]
[354334161,1740426636217,-500.0,0.00014356,2]
[354334162,1740426636226,-500.0,0.00014356,2]
[354334163,1740426636235,-500.0,0.00014356,2]
[354334164,1740426636244,-500.0,0.00014356,2]
[354334165,1740426636253,-789.85,0.00014356,2]
[354334166,1740426636263,-500.0,0.00014356,2]
[354334167,1740426636272,-792.13,0.00014356,2]
[354334168,1740426636281,-500.0,0.00014356,2]
[354334169,1740426636291,-500.0,0.00014356,2]
[354334170,1740426636300,-500.0,0.00014356,2]
[354334171,1740426636309,-737.26,0.00014356,2]
[354334172,1740426636318,-500.0,0.00014356,2]
[354334173,1740426636328,-151.0,0.00014356,2]
[354334174,1740426636337,-500.0,0.00014356,2]
[354334175,1740426636347,-1020.52,0.00014356,2]
[354334176,1740426636356,-500.0,0.00014356,2]
[354334177,1740426636366,-500.0,0.00014356,2]
[354334178,1740426636376,-500.0,0.00014356,2]
[354334179,1740426636385,-560.63,0.00014356,2]
[354334180,1740426636395,-500.0,0.00014356,2]
[354334181,1740426636404,-242.68682,0.00014356,2]
[354334182,1740426636414,-839.91,0.00014356,2]
[354334183,1740426636424,-242.68682,0.00014356,2]
[354334184,1740426636434,-2458.51,0.00014356,2]
[354334185,1740426636443,-500.0,0.00014356,2]
[354334186,1740426636453,-500.0,0.00014356,2]
[354334187,1740426636462,-757.47,0.00014356,2]
[354334188,1740426636471,-7237.67,0.00014356,2]
[354334189,1740426636481,-906.71,0.00014356,2]
[354334190,1740426636490,-773.183495,0.00014356,2]
[354334191,1740426636500,-773.183495,0.00014356,2]
[354334192,1740426636509,-500.0,0.00014356,2]
[354334193,1740426636519,-500.0,0.00014356,2]
[354334194,1740426636529,-465.44,0.00014356,2]
[354334195,1740426636539,-225.2,0.00014356,2]
[354334196,1740426636548,-1637.13,0.00014356,2]
[354334197,1740426636558,-874.186738,0.00014356,2]
[354334198,1740426636567,-874.186738,0.00014356,2]
[354334199,1740426636577,-500.0,0.00014356,2]
[354334200,1740426636585,-586.07,0.00014356,2]
[354334201,1740426636595,-277.34297,0.00014356,2]
[354334202,1740426636604,-277.34297,0.00014356,2]
[354334203,1740426636614,-1669.06,0.00014356,2]
[354334204,1740426636623,-579.45,0.00014356,2]
[354334205,1740426636633,-1799.77,0.00014356,2]
[354334206,1740426636643,-970.0,0.00014356,2]
[354334207,1740426636653,-1617.98,0.00014356,2]
[354334208,1740426636662,-9318.78,0.00014356,2]
[354334209,1740426636672,-798.94,0.00014356,2]
[354334210,1740426636682,-500.0,0.00014356,2]
[354334211,1740426636692,-553.11,0.00014356,2]
[354334212,1740426636702,-151.0,0.000144,2]
[354334213,1740426636711,-500.0,0.00014438,2]
[354334214,1740426636720,-500.0,0.00014438,2]
[354334215,1740426636730,-500.0,0.00014438,2]
[354334216,1740426636741,-500.0,0.00014438,2]
[354334217,1740426636751,-500.0,0.00014438,2]
[354334218,1740426636760,-438.64,0.00014438,2]
[354334219,1740426636770,-789.85,0.00014438,2]
[354334220,1740426636779,-500.0,0.00014438,2]
[354334221,1740426636789,-792.13,0.00014438,2]
[354334222,1740426636798,-286.08,0.00014438,2]
[354334223,1740426636807,-500.0,0.00014438,2]
[354334224,1740426636817,-737.26,0.00014438,2]
[354334225,1740426636826,-500.0,0.00014438,2]
[354334226,1740426636835,-500.0,0.00014438,2]
[354334227,1740426636844,-1020.52,0.00014438,2]
[354334228,1740426636853,-500.0,0.00014438,2]
[354334229,1740426636863,-500.0,0.00014438,2]
[354334230,1740426636872,-560.63,0.00014438,2]
[354334231,1740426636881,-500.0,0.00014438,2]
[354334232,1740426636890,-839.91,0.00014438,2]
[354334233,1740426636899,-2458.51,0.00014438,2]
[354334234,1740426636909,-500.0,0.00014438,2]
[354334235,1740426636918,-757.47,0.00014438,2]
[354334236,1740426636927,-7237.67,0.00014438,2]
[354334237,1740426636937,-906.71,0.00014438,2]
[354334238,1740426636946,-500.0,0.00014438,2]
[354334239,1740426636956,-733.252567,0.00014438,2]
[354334240,1740426636965,-733.252567,0.00014438,2]
[354334241,1740426636974,-1637.13,0.00014438,2]
[354334242,1740426636983,-500.0,0.00014438,2]
[354334243,1740426636993,-586.07,0.00014438,2]
[354334244,1740426637002,-1669.06,0.00014438,2]
[354334245,1740426637011,-1799.77,0.00014438,2]
[354334246,1740426637024,-970.0,0.00014438,2]
[354334247,1740426637034,-1617.98,0.00014438,2]
[354334248,1740426637043,-9318.78,0.00014438,2]
[354334249,1740426637052,-798.94,0.00014438,2]
[354334250,1740426637061,-500.0,0.00014438,2]
[354334251,1740426637070,-553.11,0.00014438,2]
[354334252,1740426637079,-151.0,0.000145,2]
[354334253,1740426637088,-164.52528685,0.00014502,2]
[354334254,1740426637097,-164.52528685,0.00014502,2]
[354334255,1740426637107,-164.52528685,0.00014502,2]
[354334256,1740426637116,-164.52528685,0.00014502,2]
[354334257,1740426637125,-164.52528685,0.00014502,2]
[354334258,1740426637135,-164.52528685,0.00014502,2]
[354334259,1740426637143,-164.52528685,0.00014502,2]
[354334260,1740426637153,-164.52528685,0.00014502,2]
[354334261,1740426637162,-164.52528685,0.00014502,2]
[354334262,1740426637170,-164.52528685,0.00014502,2]
[354334263,1740426637180,-164.52528685,0.00014502,2]
[354334264,1740426637189,-164.52528685,0.00014502,2]
[354334265,1740426637198,-164.52528685,0.00014502,2]
[354334266,1740426637207,-164.52528685,0.00014502,2]
[354334267,1740426637216,-164.52528685,0.00014502,2]
[354334268,1740426637226,-164.52528685,0.00014502,2]
[354334269,1740426637235,-164.52528685,0.00014502,2]
[354334270,1740426637244,-164.52528685,0.00014502,2]
[354334271,1740426637253,-164.52528685,0.00014502,2]
[354334272,1740426637263,-164.52,0.00014502,2]
[354334273,1740426637272,-500.0,0.0001452,2]
[354334274,1740426637281,-500.0,0.0001452,2]
[354334275,1740426637291,-500.0,0.0001452,2]
[354334276,1740426637300,-500.0,0.0001452,2]
[354334277,1740426637310,-789.85,0.0001452,2]
[354334278,1740426637319,-626.48,0.0001452,2]
[354334279,1740426637329,-792.13,0.0001452,2]
[354334280,1740426637338,-737.26,0.0001452,2]
[354334281,1740426637347,-500.0,0.0001452,2]
[354334282,1740426637357,-151.0,0.0001452,2]
[354334283,1740426637366,-153.0,0.0001452,2]
[354334284,1740426637375,-1020.52,0.0001452,2]
[354334285,1740426637385,-500.0,0.0001452,2]
[354334286,1740426637394,-255.2,0.0001452,2]
[354334287,1740426637403,-560.63,0.0001452,2]
[354334288,1740426637413,-500.0,0.0001452,2]
[354334289,1740426637422,-177.49881141,0.0001452,2]
[354334305,1740426638641,-500.0,0.00014191,2]
[354334306,1740426638651,-192.52165522,0.00014272,2]
[354334307,1740426638660,-500.0,0.00014273,2]
[354334308,1740426638670,-500.0,0.00014356,2]
[354334309,1740426638686,-500.0,0.00014438,2]
[354334310,1740426638695,-151.0,0.00014438,2]
[354334311,1740426638704,-65.18800859,0.0001452,2]
[354334312,1740426638714,-839.91,0.0001452,2]
[354334313,1740426638724,-242.68682,0.0001452,2]
[354334314,1740426638733,-2458.51,0.0001452,2]
[354334315,1740426638743,-500.0,0.0001452,2]
[354334316,1740426638752,-757.47,0.0001452,2]
[354334318,1740426638761,-7237.67,0.0001452,2]
[354334319,1740426638770,-906.71,0.0001452,2]
[354334322,1740426638779,-773.183495,0.0001452,2]
[354334325,1740426638788,-773.183495,0.0001452,2]
[354334328,1740426638799,-500.0,0.0001452,2]
[354334330,1740426638809,-1637.13,0.0001452,2]
[354334333,1740426638819,-874.186738,0.0001452,2]
[354334335,1740426638829,-874.186738,0.0001452,2]
[354334337,1740426638839,-156.27,0.0001452,2]
[354334338,1740426638848,-586.07,0.0001452,2]
[354334339,1740426638858,-277.34297,0.0001452,2]
[354334340,1740426638867,-277.34297,0.0001452,2]
[354334342,1740426638876,-174.056845,0.0001452,2]
[354334343,1740426638885,-174.056845,0.0001452,2]
[354334344,1740426638894,-1669.06,0.0001452,2]
[354334345,1740426638903,-1799.77,0.0001452,2]
[354334346,1740426638912,-970.0,0.0001452,2]
[354334347,1740426638921,-1617.98,0.0001452,2]
[354334348,1740426638930,-9318.78,0.0001452,2]
[354334349,1740426638939,-798.94,0.0001452,2]
[354334350,1740426638948,-272.48,0.0001452,2]
[354334351,1740426638958,-553.11,0.0001452,2]
[354334352,1740426638967,-500.0,0.0001452,2]
[354334353,1740426638976,-159.66213942,0.00014585,2]
[354334354,1740426638985,-11619.20201625,0.00014602,5]
[354334355,1740426638994,-500.0,0.00014602,2]
[354334356,1740426639003,-500.0,0.00014602,2]
[354334357,1740426639013,-500.0,0.00014602,2]
[354334358,1740426639026,-500.0,0.00014602,2]
[354334359,1740426639035,-789.85,0.00014602,2]
[354334360,1740426639045,-792.13,0.00014602,2]
[354334361,1740426639054,-737.26,0.00014602,2]
[354334362,1740426639065,-500.0,0.00014602,2]
[354334363,1740426639074,-1020.52,0.00014602,2]
[354334364,1740426639083,-500.0,0.00014602,2]
[354334365,1740426639092,-560.63,0.00014602,2]
[354334366,1740426639103,-500.0,0.00014602,2]
[354334367,1740426639112,-839.91,0.00014602,2]
[354334368,1740426639122,-2458.51,0.00014602,2]
[354334369,1740426639131,-500.0,0.00014602,2]
[354334370,1740426639140,-757.47,0.00014602,2]
[354334371,1740426639150,-7237.67,0.00014602,2]
[354334372,1740426639159,-906.71,0.00014602,2]
[354334373,1740426639168,-350.10127084,0.00014602,2]
[354334374,1740426639995,-287.41872916,0.00014602,2]
[354334375,1740426640005,-1637.13,0.00014602,2]
[354334376,1740426640015,-586.07,0.00014602,2]
[354334377,1740426640025,-1669.06,0.00014602,2]
[354334378,1740426640037,-1799.77,0.00014602,2]
[354334379,1740426640046,-970.0,0.00014602,2]
[354334380,1740426640057,-1617.98,0.00014602,2]
[354334381,1740426640067,-9318.78,0.00014602,2]
[354334382,1740426640078,-798.94,0.00014602,2]
[354334383,1740426640087,-553.11,0.00014602,2]
[354334384,1740426640097,-500.0,0.00014602,2]
[354334385,1740426640106,-200.708,0.00014668,2]
[354334386,1740426640116,-263.78014313,0.00014683,2]
[354334387,1740426640125,-500.0,0.00014684,2]
[354334388,1740426640134,-500.0,0.00014684,2]
[354334389,1740426640143,-401.02440281,0.00014684,2]
[354334390,1740426640152,-500.0,0.00014684,2]
[354334391,1740426640163,-789.85,0.00014684,2]
[354334392,1740426640172,-672.6564889,0.00014684,2]
[354334393,1740426640183,-119.4735111,0.00014684,2]
[354334394,1740426640193,-737.26,0.00014684,2]
[354334395,1740426640203,-500.0,0.00014684,2]
[354334396,1740426640213,-1020.52,0.00014684,2]
[354334397,1740426640223,-500.0,0.00014684,2]